bitfinex-derivatives/quotes_SOLF0:USTF0_20260316
["timestamp","ask_amount","ask_price","bid_price","bid_amount"]
[1773630614280,4.76372854,91.539,91.481,4.57630793]
[1773630617390,4.76372854,91.539,91.485,4.64299691]
[1773630620689,7.62664471,91.54,91.481,4.73040929]
[1773630620894,2.86291617,91.55,91.491,4.73040929]
[1773630621089,4.76372854,91.553,91.511,4.73040929]
[1773630622090,5.19691388,91.568,91.511,4.73040929]
[1773630623297,5.19691388,91.559,91.511,4.73040929]
[1773630631798,32.76,91.595,91.521,4.66414238]
[1773630631799,5.19691388,91.579,91.521,4.66414238]
[1773630633103,5.19691388,91.579,91.525,4.68057541]
[1773630633597,5.19691388,91.579,91.531,4.69616476]
[1773630633998,5.19691388,91.592,91.541,4.69616476]
[1773630634295,2.86291617,91.59,91.533,13.45031811]
[1773630634501,5.19691388,91.589,91.532,13.45031811]
[1773630634803,5.19691388,91.589,91.531,18.14648287]
[1773630635100,5.19691388,91.589,91.532,4.69157419]
[1773630636398,5.19691388,91.589,91.54,2.86291617]
[1773630636701,5.19691388,91.589,91.541,4.68980156]
[1773630637893,5.19691388,91.589,91.55,2.86291617]
[1773630638094,5.19691388,91.589,91.551,4.78763144]
[1773630638999,5.19691388,91.579,91.528,13.45031811]
[1773630639298,5.19691388,91.559,91.509,4.78337892]
[1773630643104,5.19691388,91.559,91.499,13.45031811]
[1773630643105,5.19691388,91.573,91.521,4.7548946]
[1773630650312,34.4,91.608,91.531,4.90738303]
[1773630650313,5.19691388,91.587,91.531,4.90738303]
[1773630651510,2.86392415,91.58,91.531,4.90738303]
[1773630651707,5.19691388,91.569,91.518,4.90738303]
[1773630652811,5.19691388,91.569,91.521,4.97318931]
[1773630668224,5.19691388,91.569,91.518,13.45031811]
[1773630668419,5.50715914,91.559,91.509,13.45031811]
[1773630668618,5.50715914,91.559,91.51,2.86392415]
[1773630668821,2.86392415,91.58,91.521,5.10511033]
[1773630669019,5.50715914,91.579,91.521,5.10511033]
[1773630671630,5.50715914,91.579,91.522,5.10511033]
[1773630682638,5.50715914,91.579,91.523,5.5817332]
[1773630683339,5.50715914,91.579,91.524,5.76267671]
[1773630684239,5.50715914,91.579,91.528,5.77215196]
[1773630684438,34.4,91.608,91.538,13.45031811]
[1773630684439,5.59292393,91.591,91.538,13.45031811]
[1773630684744,5.59292393,91.591,91.539,5.77215196]
[1773630684933,5.59292393,91.591,91.54,5.78714372]
[1773630685937,5.59292393,91.591,91.544,5.78714372]
[1773630686640,5.59292393,91.591,91.55,2.86392415]
[1773630686834,5.59292393,91.591,91.551,5.78714372]
[1773630692339,2.86392415,91.6,91.551,5.78714372]
[1773630692544,2.86392415,91.62,91.551,5.78714372]
[1773630694541,5.59292393,91.619,91.551,5.78714372]
[1773630695842,5.59292393,91.609,91.551,5.78714372]
[1773630696143,5.59292393,91.599,91.551,5.78714372]
[1773630711648,5.59292393,91.619,91.551,5.78714372]
[1773630713549,32.76,91.632,91.551,5.78714372]
[1773630713550,5.84677311,91.609,91.551,5.78714372]
[1773630723559,5.75277695,91.621,91.561,5.79375075]
[1773630723862,5.75277695,91.619,91.561,5.79375075]
[1773630724659,2.86096685,91.61,91.551,13.45031811]
[1773630724863,5.75277695,91.599,91.538,19.24406886]
[1773630725060,5.75277695,91.599,91.542,5.79375075]
[1773630725861,5.75277695,91.589,91.542,5.79375075]
[1773630746586,32.76,91.609,91.532,19.43511451]
[1773630746587,5.91969509,91.569,91.532,19.43511451]
[1773630747980,5.91969509,91.569,91.533,5.9847964]
[1773630751878,5.91969509,91.569,91.523,19.43511451]
[1773630752484,5.91969509,91.569,91.524,5.9847964]
[1773630765697,5.91969509,91.579,91.524,5.9847964]
[1773630768801,5.91969509,91.579,91.53,2.86286141]
[1773630769008,5.91969509,91.579,91.531,5.9847964]
[1773630769507,5.91969509,91.579,91.533,5.9847964]
[1773630769907,5.91969509,91.592,91.54,2.86286141]
[1773630770107,5.91969509,91.592,91.541,5.9847964]
[1773630772405,5.99061247,91.599,91.541,5.9847964]
[1773630781311,5.79190352,91.569,91.534,34.4]
[1773630782118,5.79190352,91.569,91.521,6.02361828]
[1773630787411,5.79190352,91.569,91.511,6.02361828]
[1773630793023,34.4,91.588,91.511,6.02361828]
[1773630793024,5.79190352,91.559,91.511,6.02361828]
[1773630810238,5.93829146,91.57,91.511,6.02361828]
[1773630810445,5.93829146,91.57,91.521,6.05269428]
[1773630818344,2.86286141,91.57,91.521,6.05269428]
[1773630818653,2.86286141,91.57,91.51,2.86286141]
[1773630818654,5.93829146,91.559,91.508,6.05269428]
[1773630819254,5.93829146,91.559,91.497,13.45031811]
[1773630819446,5.93829146,91.539,91.496,6.05269428]
[1773630819642,5.93829146,91.529,91.477,13.45031811]
[1773630819946,32.76,91.567,91.47,8.91555569]
[1773630819947,5.93829146,91.519,91.47,6.05269428]
[1773630820346,5.93829146,91.519,91.471,6.05269428]
[1773630820850,2.86286141,91.54,91.468,34.4]
[1773630820851,5.93829146,91.539,91.481,6.05269428]
[1773630826855,2.8655227,91.53,91.481,6.05269428]
[1773630830658,5.93829146,91.539,91.481,6.05269428]
[1773630832850,5.93829146,91.539,91.491,6.09122227]
[1773630834261,5.82472571,91.529,91.491,6.09122227]
[1773630836860,2.8655227,91.54,91.491,6.09122227]
[1773630837066,5.82472571,91.543,91.491,6.09122227]
[1773630837859,2.8655227,91.55,91.491,6.09122227]
[1773630838064,5.82472571,91.558,91.501,5.98372395]
[1773630840771,5.82472571,91.569,91.521,5.98372395]
[1773630841064,5.82472571,91.559,91.506,5.98372395]
[1773630842966,5.82472571,91.549,91.506,5.98372395]
[1773630846768,5.82472571,91.539,91.479,5.98372395]
[1773630849576,5.82472571,91.539,91.481,5.98372395]
[1773630852175,5.82472571,91.529,91.481,5.98372395]
[1773630862284,5.9673104,91.519,91.46,6.08722293]
[1773630862586,5.9673104,91.499,91.441,6.08722293]
[1773630869899,5.9673104,91.509,91.451,6.08722293]
[1773630873501,5.9673104,91.509,91.461,6.08722293]
[1773630874699,5.9673104,91.555,91.481,6.08722293]
[1773630874905,5.9673104,91.549,91.481,6.08722293]
[1773630875100,2.8655227,91.54,91.481,6.08722293]
[1773630875301,5.9673104,91.539,91.481,6.08722293]
[1773630880413,34.42,91.564,91.471,6.08722293]
[1773630880414,5.9673104,91.529,91.471,6.08722293]
[1773630883207,32.76,91.563,91.471,6.08722293]
[1773630883415,5.9673104,91.543,91.491,6.08722293]
[1773630885118,5.9673104,91.539,91.491,6.08722293]
[1773630885614,5.9673104,91.529,91.479,6.08722293]
[1773630886018,5.9673104,91.519,91.479,6.08722293]
[1773630888818,5.9673104,91.519,91.481,6.08722293]
[1773630900427,5.75321963,91.531,91.481,6.08722293]
[1773630901024,5.75321963,91.529,91.467,6.19231184]
[1773630901232,5.75321963,91.509,91.456,6.19231184]
[1773630901426,5.75321963,91.499,91.443,6.19231184]
[1773630901730,5.75321963,91.489,91.443,6.19231184]
[1773630902133,5.75321963,91.502,91.451,6.19231184]
[1773630902430,5.75321963,91.517,91.461,6.19231184]
[1773630902736,5.75321963,91.517,91.471,6.19231184]
[1773630903636,2.8647145,91.51,91.459,6.19231184]
[1773630903836,5.75321963,91.509,91.459,6.19231184]
[1773630904038,5.75321963,91.509,91.461,6.19231184]
[1773630904233,5.75321963,91.521,91.471,6.19231184]
[1773630907640,5.75321963,91.519,91.459,6.19231184]
[1773630907840,5.75321963,91.509,91.459,6.19231184]
[1773630908041,5.75321963,91.509,91.45,2.8647145]
[1773630908244,5.75321963,91.499,91.446,6.19231184]
[1773630909643,2.8647145,91.47,91.423,6.85274152]
[1773630912349,2.8647145,91.46,91.411,6.78314067]
[1773630912546,2.8647145,91.44,91.391,6.78314067]
[1773630918657,2.8647145,91.46,91.391,6.78314067]
[1773630922556,2.8647145,91.45,91.391,6.78314067]
[1773630926055,2.8647145,91.47,91.401,6.72787741]
[1773630926264,2.8647145,91.47,91.411,6.72787741]
[1773630927264,2.8647145,91.46,91.411,6.72787741]
[1773630928061,2.8647145,91.48,91.421,6.72846237]
[1773630929062,2.8647145,91.47,91.421,6.72846237]
[1773630930668,2.8647145,91.46,91.409,6.63073223]
[1773630933363,32.78,91.504,91.409,6.63073223]
[1773630933563,2.8647145,91.47,91.409,6.63073223]
[1773630934468,2.8647145,91.46,91.409,6.63073223]
[1773630935568,2.8647145,91.47,91.409,6.63073223]
[1773630938473,2.8647145,91.46,91.409,6.63073223]
[1773630940477,2.8647145,91.47,91.409,6.63073223]
[1773630941667,2.8647145,91.46,91.409,6.63073223]
[1773630942070,2.8647145,91.47,91.409,6.63073223]
[1773630943579,2.8647145,91.46,91.409,6.63073223]
[1773630946881,2.8697909,91.47,91.409,6.63073223]
[1773630951785,2.8697909,91.45,91.398,6.60894069]
[1773630953685,2.8697909,91.46,91.398,6.60894069]
[1773630953883,2.8697909,91.44,91.398,6.60894069]
[1773630954190,2.8697909,91.43,91.384,6.58782393]
[1773630955589,2.8697909,91.44,91.384,6.58782393]
[1773630956480,32.78,91.472,91.39,2.8697909]
[1773630956791,2.8697909,91.47,91.41,2.8697909]
[1773630956990,2.8697909,91.48,91.411,6.78185432]
[1773630957387,2.8697909,91.48,91.421,6.78185432]
[1773630959095,2.8697909,91.47,91.421,6.78185432]
[1773630959891,2.8697909,91.48,91.421,6.78185432]
[1773630960488,32.78,91.507,91.421,6.78185432]
[1773630960696,2.8697909,91.49,91.431,6.65581141]
[1773630960989,2.8697909,91.48,91.431,6.65581141]
[1773630961293,2.8697909,91.47,91.431,6.65581141]
[1773630961486,2.8697909,91.48,91.431,6.65581141]
[1773630961686,32.78,91.505,91.431,6.65581141]
[1773630961885,2.8697909,91.48,91.431,6.65581141]
[1773630962693,2.8697909,91.48,91.402,20.33043949]
[1773630962694,2.8697909,91.51,91.451,6.65116118]
[1773630963395,2.8697909,91.5,91.451,6.65116118]
[1773630970201,2.8697909,91.51,91.451,6.65116118]
[1773630970598,2.8697909,91.52,91.461,6.59375801]
[1773630972098,32.78,91.546,91.471,6.6132098]
[1773630972298,2.8697909,91.54,91.481,6.6132098]
[1773630976691,34.42,91.558,91.481,6.6132098]
[1773630976896,2.8697909,91.54,91.481,6.6132098]
[1773630977703,2.8697909,91.53,91.481,6.6132098]
[1773630978602,2.8697909,91.52,91.467,6.61689527]
[1773630978795,2.8697909,91.51,91.467,6.61689527]
[1773630979002,2.8697909,91.5,91.467,6.61689527]
[1773630979605,2.8697909,91.51,91.467,6.61689527]
[1773630980908,2.8697909,91.5,91.467,6.61689527]
[1773630981799,2.8697909,91.49,91.437,6.83366846]
[1773630982803,2.8697909,91.48,91.437,6.83366846]
[1773630983908,2.8697909,91.47,91.411,6.86348277]
[1773630984306,2.8697909,91.48,91.421,6.86348277]
[1773630985311,2.8697909,91.49,91.421,6.86348277]
[1773630986204,2.8697909,91.49,91.43,2.8697909]
[1773630986406,2.8697909,91.49,91.431,6.8685783]
[1773630988313,2.8697909,91.51,91.441,6.84464851]
[1773630989812,2.8697909,91.51,91.451,6.84123284]
[1773630996027,32.78,91.537,91.461,6.72381494]
[1773630996218,1.90159258,91.578,91.471,6.72381494]
[1773630996219,2.8697909,91.53,91.471,6.72381494]
[1773630996713,32.78,91.552,91.471,6.72381494]
[1773630996714,2.8697909,91.54,91.48,2.8697909]
[1773630996914,2.8697909,91.54,91.481,6.70450199]
[1773631004324,2.8697909,91.55,91.491,6.66928461]
[1773631008928,2.86457385,91.55,91.491,6.66928461]
[1773631015031,34.42,91.56,91.491,6.66928461]
[1773631015032,2.86457385,91.54,91.491,6.66928461]
[1773631015732,2.86457385,91.52,91.463,6.68289386]
[1773631015926,2.86457385,91.53,91.471,6.68320962]
[1773631016232,2.86457385,91.54,91.481,6.68320962]
[1773631017429,2.86457385,91.55,91.491,6.68196162]
[1773631018330,2.86457385,91.54,91.491,6.68196162]
[1773631023740,2.86457385,91.53,91.491,6.68196162]
[1773631024239,2.86457385,91.51,91.464,6.68748875]
[1773631027947,2.86457385,91.52,91.464,6.68748875]
[1773631037557,2.86457385,91.54,91.48,2.86457385]
[1773631037856,2.86457385,91.54,91.448,34.42]
[1773631037857,2.86457385,91.55,91.491,6.84811958]
[1773631038057,2.86457385,91.54,91.491,6.84811958]
[1773631044957,2.86457385,91.55,91.491,6.84811958]
[1773631049359,2.86457385,91.56,91.491,6.84811958]
[1773631050362,2.86457385,91.55,91.491,6.84811958]
[1773631051260,2.86457385,91.55,91.501,6.79263542]
[1773631051564,2.86457385,91.56,91.501,6.79263542]
[1773631055469,2.86457385,91.55,91.501,6.79263542]
[1773631056065,2.86457385,91.56,91.501,6.79263542]
[1773631056465,2.86457385,91.57,91.51,2.86457385]
[1773631056664,20.25586077,91.62,91.484,40.00243949]
[1773631056665,2.86457385,91.58,91.521,6.80023792]
[1773631057170,2.86457385,91.57,91.521,6.80023792]
[1773631057363,2.86457385,91.56,91.521,6.80023792]
[1773631057560,2.86457385,91.57,91.521,6.80023792]
[1773631058971,10.21299227,91.61,91.531,6.79039093]
[1773631059171,2.86457385,91.57,91.531,6.79039093]
[1773631059366,2.86457385,91.56,91.511,6.79039093]
[1773631070790,2.86382159,91.56,91.511,6.79039093]
[1773631073080,2.86382159,91.56,91.499,34.4]
[1773631073081,2.86382159,91.59,91.531,6.87380335]
[1773631073281,2.86382159,91.6,91.531,6.87380335]
[1773631074083,2.86382159,91.59,91.531,6.87380335]
[1773631074681,2.86382159,91.58,91.531,6.87380335]
[1773631078989,32.78,91.616,91.531,6.87380335]
[1773631079186,2.86382159,91.59,91.531,6.87380335]
[1773631081592,2.86382159,91.58,91.531,6.87380335]
[1773631082586,2.86382159,91.59,91.531,6.87380335]
[1773631084493,32.78,91.616,91.531,6.87380335]
[1773631084691,2.86382159,91.59,91.531,6.87380335]
[1773631085591,2.86382159,91.6,91.531,6.87380335]
[1773631086696,2.86382159,91.6,91.54,2.86382159]
[1773631086897,2.86382159,91.6,91.541,6.86931108]
[1773631089193,2.86382159,91.59,91.541,6.86931108]
[1773631090793,2.86382159,91.6,91.541,6.86931108]
[1773631092607,2.86382159,91.61,91.551,6.86308253]
[1773631096608,2.86382159,91.62,91.561,6.85861135]
[1773631097009,32.78,91.64,91.561,6.85861135]
[1773631097205,2.86382159,91.62,91.561,6.85861135]
[1773631101709,2.86382159,91.63,91.57,2.86382159]
[1773631101915,2.86382159,91.63,91.571,6.85936363]
[1773631103810,10.179839,91.678,91.601,6.9066964]
[1773631104013,2.86382159,91.67,91.611,6.9066964]
[1773631104321,2.86382159,91.68,91.621,6.9066964]
[1773631104519,2.86382159,91.69,91.621,6.9066964]
[1773631104817,2.86382159,91.68,91.621,6.9066964]
[1773631105220,2.86382159,91.67,91.621,6.9066964]
[1773631106012,32.78,91.697,91.578,6.70013759]
[1773631106219,2.86382159,91.65,91.591,6.70013759]
[1773631107715,2.86382159,91.66,91.591,6.70013759]
[1773631108510,2.86382159,91.66,91.6,2.86382159]
[1773631108910,2.86382159,91.66,91.601,6.50894572]
[1773631109312,2.86382159,91.66,91.544,20.33043949]
[1773631109313,2.86382159,91.63,91.59,6.50894572]
[1773631110219,2.86382159,91.64,91.59,6.50894572]
[1773631115521,2.86382159,91.63,91.59,6.50894572]
[1773631116424,2.86382159,91.63,91.56,2.86382159]
[1773631116626,2.86382159,91.63,91.556,34.38]
[1773631116627,2.86382159,91.61,91.561,6.67676924]
[1773631117524,2.86382159,91.62,91.561,6.67676924]
[1773631118426,2.86382159,91.61,91.561,6.67676924]
[1773631118623,2.86382159,91.6,91.561,6.67676924]
[1773631119027,32.78,91.645,91.561,6.67676924]
[1773631119028,2.86382159,91.61,91.561,6.67676924]
[1773631119327,2.86382159,91.6,91.561,6.67676924]
[1773631119525,2.86382159,91.61,91.561,6.67676924]
[1773631120429,2.86382159,91.59,91.546,6.67366518]
[1773631122529,2.86382159,91.58,91.521,6.68267773]
[1773631123726,2.86382159,91.57,91.521,6.68267773]
[1773631124532,2.86382159,91.58,91.521,6.68267773]
[1773631128338,2.86382159,91.58,91.49,13.48325388]
[1773631128339,2.86382159,91.59,91.531,6.72409382]
[1773631129242,2.86382159,91.58,91.531,6.72409382]
[1773631130340,2.86382159,91.59,91.531,6.72409382]
[1773631130733,2.86196884,91.59,91.531,6.72409382]
[1773631135043,2.86196884,91.58,91.531,6.72409382]
[1773631136444,32.78,91.621,91.515,6.77001073]
[1773631136644,2.86196884,91.57,91.515,6.77001073]
[1773631136849,2.86196884,91.58,91.515,6.77001073]
[1773631138048,2.86196884,91.57,91.515,6.77001073]
[1773631140552,2.86196884,91.59,91.531,6.66994515]
[1773631140947,2.86196884,91.6,91.531,6.66994515]
[1773631141246,2.86196884,91.59,91.531,6.66994515]
[1773631141449,13.60976832,91.655,91.5,13.48325388]
[1773631141450,2.86196884,91.6,91.541,6.64015902]
[1773631141649,2.86196884,91.61,91.551,6.64015902]
[1773631142652,2.86196884,91.62,91.561,6.64562809]
[1773631145558,2.86196884,91.6,91.561,6.64562809]
[1773631145753,2.86196884,91.61,91.561,6.64562809]
[1773631146355,2.86196884,91.65,91.591,6.66485006]
[1773631146556,2.86196884,91.66,91.601,6.66485006]
[1773631146956,34.4,91.688,91.611,6.68706036]
[1773631146957,2.86196884,91.67,91.611,6.68706036]
[1773631150353,2.86196884,91.66,91.611,6.68706036]
[1773631150553,2.86196884,91.67,91.611,6.68706036]
[1773631152256,2.86196884,91.68,91.62,2.86196884]
[1773631152453,2.86196884,91.68,91.621,6.77184114]
[1773631154059,2.86196884,91.67,91.61,6.75870827]
[1773631154857,2.86196884,91.65,91.571,6.75904233]
[1773631155059,2.86196884,91.65,91.591,6.75904233]
[1773631155959,2.86196884,91.66,91.591,6.75904233]
[1773631156362,2.86196884,91.66,91.601,6.75834503]
[1773631156866,32.78,91.697,91.601,6.75834503]
[1773631157059,2.86196884,91.66,91.601,6.75834503]
[1773631159858,2.86196884,91.65,91.601,6.75834503]
[1773631161768,2.86196884,91.64,91.601,6.75834503]
[1773631162063,2.86196884,91.64,91.581,6.75089944]
[1773631163769,2.86196884,91.65,91.581,6.75089944]
[1773631164170,10.179839,91.697,91.581,6.75089944]
[1773631164171,2.86196884,91.64,91.581,6.75089944]
[1773631165067,2.86196884,91.65,91.581,6.75089944]
[1773631165369,2.86196884,91.66,91.6,2.86196884]
[1773631165568,2.86196884,91.66,91.601,6.845845]
[1773631167267,2.86196884,91.65,91.601,6.845845]
[1773631171069,2.86196884,91.66,91.601,6.845845]
[1773631173669,32.78,91.697,91.601,6.845845]
[1773631173875,2.86196884,91.67,91.611,6.86043444]
[1773631175172,2.86196884,91.68,91.611,6.86043444]
[1773631175471,2.86196884,91.67,91.611,6.86043444]
[1773631180782,2.86196884,91.68,91.621,6.83701161]
[1773631182475,34.36,91.695,91.621,6.83701161]
[1773631182476,2.86196884,91.67,91.621,6.83701161]
[1773631186084,2.86196884,91.68,91.621,6.83701161]
[1773631192082,2.86196884,91.67,91.621,6.83701161]
[1773631192786,2.85673454,91.67,91.621,6.83701161]
[1773631195088,2.85673454,91.68,91.621,6.83701161]
[1773631195288,2.85673454,91.67,91.621,6.83701161]
[1773631196889,2.85673454,91.66,91.621,6.83701161]
[1773631198092,2.85673454,91.67,91.621,6.83701161]
[1773631200286,2.85673454,91.67,91.61,2.85673454]
[1773631200287,2.85673454,91.65,91.609,6.82546546]
[1773631201196,34.36,91.674,91.593,6.83797253]
[1773631201197,2.85673454,91.63,91.593,6.83797253]
[1773631201589,10.179839,91.664,91.593,6.83797253]
[1773631201788,2.85673454,91.66,91.601,6.83797253]
[1773631202091,2.85673454,91.67,91.601,6.83797253]
[1773631202293,2.85673454,91.67,91.592,13.48325388]
[1773631202294,2.85673454,91.67,91.611,6.8213489]
[1773631203798,67.1,91.68,91.597,6.87529271]
[1773631203995,2.85673454,91.65,91.597,6.87529271]
[1773631204698,2.85673454,91.66,91.601,6.87527163]
[1773631206890,2.85673454,91.67,91.601,6.87527163]
[1773631207397,2.85673454,91.66,91.601,6.87527163]
[1773631215106,2.85673454,91.65,91.601,6.87527163]
[1773631216607,2.85673454,91.64,91.601,6.87527163]
[1773631220909,2.85673454,91.63,91.601,6.87527163]
[1773631221110,2.85673454,91.63,91.583,6.8774847]
[1773631224617,2.85673454,91.64,91.583,6.8774847]
[1773631225013,2.85673454,91.63,91.583,6.8774847]
[1773631227108,2.85673454,91.64,91.583,6.8774847]
[1773631227820,2.85673454,91.65,91.591,6.82751088]
[1773631228220,34.36,91.656,91.601,6.82765944]
[1773631228520,2.85673454,91.67,91.601,6.82765944]
[1773631229017,2.85673454,91.66,91.601,6.82765944]
[1773631234722,2.85673454,91.65,91.601,6.82765944]
[1773631237423,2.85673454,91.66,91.601,6.82765944]
[1773631241628,2.85673454,91.66,91.577,34.38]
[1773631241629,2.85673454,91.67,91.611,6.92807614]
[1773631242232,32.74,91.699,91.62,2.85673454]
[1773631242233,2.85673454,91.68,91.62,2.85673454]
[1773631242425,2.85673454,91.68,91.621,6.92576296]
[1773631252846,2.856671,91.68,91.621,6.92576296]
[1773631253042,34.36,91.689,91.631,6.97534307]
[1773631253247,2.856671,91.7,91.641,6.97534307]
[1773631254947,2.18,91.694,91.641,6.97534307]
[1773631257846,0.24510253,91.72,91.671,5.92308585]
[1773631258756,3.10177353,91.72,91.671,5.92308585]
[1773631258956,0.23250032,91.719,91.671,5.92308585]
[1773631259153,2.18,91.726,91.671,5.92308585]
[1773631259355,2.856671,91.74,91.681,5.92308585]
[1773631259560,0.23250032,91.743,91.681,5.92308585]
[1773631259959,0.38317364,91.739,91.681,5.92308585]
[1773631260458,2.56317364,91.727,91.681,5.92308585]
[1773631260754,2.856671,91.72,91.681,5.92308585]
[1773631261057,2.856671,91.7,91.668,5.92308585]
[1773631261652,0.38923188,91.709,91.668,5.92308585]
[1773631261854,2.18,91.708,91.668,5.92308585]
[1773631263956,2.856671,91.69,91.631,5.92308585]
[1773631266854,0.45579689,91.666,91.618,5.92308585]
[1773631267058,2.181,91.667,91.618,5.92308585]
[1773631267557,22.30315475,91.739,91.66,2.856671]
[1773631267759,22.30315475,91.739,91.68,2.856671]
[1773631267961,22.30315475,91.739,91.67,2.856671]
[1773631268162,32.74,91.773,91.643,34.36]
[1773631268163,22.28100614,91.729,91.66,2.856671]
[1773631269360,22.28100614,91.729,91.67,2.856671]
[1773631274374,160.25806493,91.8,91.72,2.856671]
[1773631274575,79.19578092,91.859,91.79,2.856671]
[1773631274870,93.9586584,91.876,91.83,2.856671]
[1773631275065,93.9586584,91.876,91.787,10.021394]
[1773631275367,14.76287748,91.876,91.82,2.856671]
[1773631275766,79.10351622,91.875,91.82,2.856671]
[1773631275964,2.856671,91.87,91.79,34.34]
[1773631276164,2.856671,91.87,91.779,10.00879164]
[1773631276165,82.00634717,91.87,91.8,2.856671]
[1773631276569,79.14967617,91.87,91.81,2.856671]
[1773631276880,79.14967617,91.87,91.79,8.12603878]
[1773631277269,14.76287748,91.876,91.79,8.12603878]
[1773631278977,14.76287748,91.876,91.791,34.34]
[1773631279175,14.76287748,91.876,91.79,8.12603878]
[1773631279374,14.76287748,91.876,91.791,34.32]
[1773631280974,14.76287748,91.876,91.8,8.12603878]
[1773631281582,0.00087748,91.876,91.8,8.12603878]
[1773631282177,0.00087748,91.876,91.82,8.12603878]
[1773631283674,79.10811222,91.941,91.84,8.12603878]
[1773631284275,79.10811222,91.939,91.84,8.12603878]
[1773631285076,78.7816429,91.939,91.84,8.12603878]
[1773631285680,78.7816429,91.939,91.82,8.12603878]
[1773631285885,78.7816429,91.939,91.821,34.3]
[1773631286590,2.175,91.938,91.821,34.3]
[1773631287190,79.10811222,91.931,91.821,34.3]
[1773631288686,17.861,91.942,91.821,34.3]
[1773631288882,79.10811222,91.994,91.857,32.74]
[1773631289088,79.10811222,91.994,91.89,8.12603878]
[1773631289385,79.10811222,91.979,91.86,42.42603878]
[1773631289598,8.12603878,91.98,91.861,34.3]
[1773631289599,79.10811222,91.977,91.861,34.3]
[1773631290392,79.10811222,91.977,91.86,8.12603878]
[1773631290594,79.10811222,91.977,91.861,34.3]
[1773631291488,79.10811222,91.969,91.833,19.597]
[1773631291695,79.10811222,91.949,91.84,8.12603878]
[1773631295693,79.10811222,91.947,91.841,34.28]
[1773631296285,79.10811222,91.947,91.842,34.28]
[1773631296996,79.10811222,91.947,91.86,8.12603878]
[1773631297296,34.28,91.978,91.861,34.28]
[1773631297494,34.28,91.983,91.861,34.28]
[1773631299097,71.1842697,91.982,91.861,34.28]
[1773631299496,71.1842697,91.982,91.88,8.12603878]
[1773631299700,71.1842697,91.982,91.881,34.26]
[1773631302502,71.31974906,91.967,91.861,32.74]
[1773631302799,71.31974906,91.965,91.86,34.26]
[1773631303495,71.34851923,91.952,91.86,34.26]
[1773631303700,71.34851923,91.949,91.86,34.26]
[1773631304103,69.7786703,91.949,91.86,34.26]
[1773631304495,71.9526703,91.949,91.86,34.26]
[1773631304696,69.7786703,91.949,91.86,34.26]
[1773631310205,70.50093894,91.947,91.86,34.26]
[1773631311302,70.50213637,91.929,91.817,32.74]
[1773631311609,70.50213637,91.928,91.819,32.74]
[1773631311807,70.50213637,91.928,91.831,32.74]
[1773631312104,70.50213637,91.928,91.83,8.12603878]
[1773631312504,70.41361272,91.925,91.83,8.12603878]
[1773631312808,70.41361272,91.919,91.818,34.26]
[1773631315408,70.41361272,91.919,91.83,8.12254893]
[1773631315710,70.41361272,91.919,91.831,34.26]
[1773631316500,70.41361272,91.919,91.832,32.74]
[1773631317302,70.41361272,91.919,91.835,32.74]
[1773631317708,70.41361272,91.919,91.839,32.74]
[1773631317908,70.41361272,91.919,91.841,32.74]
[1773631318411,70.41361272,91.919,91.85,9.69123955]
[1773631318812,70.41361272,91.919,91.854,9.69123955]
[1773631319314,10.92,91.995,91.84,21.47017833]
[1773631319315,70.30421431,91.976,91.886,9.69123955]
[1773631319613,70.30421431,91.976,91.901,9.69123955]
[1773631320015,70.30421431,91.976,91.893,9.69123955]
[1773631320314,70.29793827,91.959,91.881,9.69123955]
[1773631320509,70.29793827,91.957,91.881,9.69123955]
[1773631320711,70.29793827,91.955,91.882,34.26]
[1773631320911,70.2816015,91.953,91.881,9.69123955]
[1773631321109,70.2816015,91.953,91.882,34.26]
[1773631321420,70.2816015,91.953,91.884,9.69123955]
[1773631321908,70.2816015,91.953,91.882,34.26]
[1773631323219,70.22023084,91.939,91.869,43.95123955]
[1773631323417,70.22023084,91.937,91.868,9.69123955]
[1773631324112,70.22023084,91.937,91.869,9.69123955]
[1773631324315,70.22023084,91.937,91.87,9.69123955]
[1773631324713,70.22023084,91.937,91.869,9.69123955]
[1773631325021,70.22023084,91.937,91.87,9.69123955]
[1773631325517,70.22023084,91.937,91.872,9.69123955]
[1773631325717,70.22023084,91.937,91.867,34.26]
[1773631325718,70.22023084,91.937,91.876,9.69123955]
[1773631326017,70.22023084,91.937,91.882,9.69123955]
[1773631326413,70.22023084,91.937,91.883,9.69123955]
[1773631327215,70.22023084,91.937,91.885,9.69123955]
[1773631327409,70.22023084,91.937,91.884,9.69123955]
[1773631328218,70.22023084,91.937,91.885,9.69123955]
[1773631330222,70.22023084,91.937,91.891,9.69123955]
[1773631331328,70.22023084,91.937,91.892,9.69123955]
[1773631331733,70.22023084,91.937,91.888,9.69123955]
[1773631332226,70.22023084,91.937,91.889,9.69123955]
[1773631332619,70.22023084,91.937,91.893,9.69123955]
[1773631333331,70.22023084,91.937,91.895,9.69123955]